lending/lending_fUSD_20250303
["ID","MTS","AMOUNT","RATE_DAILY","PERIOD"]
[355188027,1740972637551,-150.0,0.00014947,2]
[355188028,1740972637560,-200.791,0.00014949,2]
[355188029,1740972637572,-150.0,0.00014953,2]
[355188030,1740972637582,-150.0,0.00014958,2]
[355188031,1740972637591,-246.01145712,0.00014963,2]
[355188032,1740972637601,-150.0,0.00014969,2]
[355188033,1740972637610,-500.0,0.0001497,2]
[355188034,1740972637620,-150.0,0.0001497,2]
[355188035,1740972637629,-150.0,0.00014975,2]
[355188036,1740972637640,-150.0,0.00014976,2]
[355188037,1740972637649,-10000.0,0.0001499,2]
[355188038,1740972637658,-177.08082207,0.0001499,2]
[355188039,1740972637669,-150.0,0.00014994,2]
[355188040,1740972637679,-150.0,0.00014995,2]
[355188041,1740972637688,-500.0,0.00014999,2]
[355188042,1740972637697,-186.54168441,0.00014999,2]
[355188043,1740972637708,-464660.17495574,0.00015,2]
[355188044,1740972637718,-103684.49099641,0.00015,2]
[355188045,1740972637730,-104255.77544233,0.00015,2]
[355188046,1740972637739,-150.0,0.00015,2]
[355188047,1740972637748,-739.32933192,0.00015,2]
[355188048,1740972637757,-150.0,0.00015,2]
[355188049,1740972637767,-3283.72521414,0.00015,2]
[355188050,1740972637776,-150.0,0.00015,2]
[355188051,1740972637786,-150.0,0.00015,2]
[355188052,1740972637795,-150.0,0.00015,2]
[355188053,1740972637804,-5303.08347913,0.00015,2]
[355188054,1740972637814,-44387.76344847,0.00015,2]
[355188055,1740972637823,-4229.34742712,0.00015,2]
[355188056,1740972637832,-200.0,0.00015,2]
[355188057,1740972637841,-1000.0,0.00015,2]
[355188058,1740972637851,-1000.0,0.00015,2]
[355188059,1740972637860,-1000.0,0.00015,2]
[355188060,1740972637869,-1000.0,0.00015,2]
[355188061,1740972637879,-1036.0,0.00015,2]
[355188062,1740972637888,-200.0,0.00015,2]
[355188063,1740972637897,-300.0,0.00015,2]
[355188064,1740972637907,-658.04934258,0.00015,2]
[355188065,1740972637916,-46644.8079402,0.00015,2]
[355188066,1740972637929,-1233.58126162,0.00015,2]
[355188067,1740972637963,-903.190002,0.00015,2]
[355188068,1740972637991,-2222.73406778,0.00015,2]
[355188069,1740972638019,-6435.12836608,0.00015,2]
[355188071,1740972639503,-346.92400733,0.00015,2]
[355188072,1740972639515,-1273.216,0.00015,2]
[355188073,1740972639617,-357.38789991,0.00015,2]
[355188074,1740972639727,-1260.3,0.00015,2]
[355188075,1740972639839,-1032.75,0.00015,2]
[355188076,1740972639951,-9526.47575124,0.00015,2]
[355188091,1740972642829,-305.56354949,0.000149,2]
[355188092,1740972642839,-314.14400576,0.00015,2]
[355188093,1740972642851,-46087.63600001,0.00015,2]
[355188094,1740972642885,-2794.10004,0.00015,2]
[355188104,1740972645571,-7346.60357526,0.00015,2]
[355188105,1740972645684,-737.02576375,0.00015,2]
[355188117,1740972737271,150.0,0.00014802,2]
[355188118,1740972737499,150.0,0.00014803,2]
[355188119,1740972737528,150.0,0.0001475,2]
[355188120,1740972737614,150.0,0.00014736,2]
[355188121,1740972737742,150.0,0.0001475,2]
[355188122,1740972737926,150.0,0.00014782,2]
[355188123,1740972738051,150.0,0.00014796,2]
[355188124,1740972743030,698.4264,0.000148,2]
[355188125,1740972839624,4050.0,0.00025,120]
[355188126,1740972901875,250.0,0.00014715,2]
[355188127,1740972994114,165.29,0.00014138,2]
[355188128,1740972994530,165.29,0.00014449,2]
[355188129,1740972994744,165.29,0.0001476,2]
[355188130,1740973071871,167.2,0.00014145,2]
[355188131,1740973133084,23900.0,0.00014145,2]
[355188133,1740973257025,474.36,0.00014184,2]
[355188134,1740973277020,150.0,0.00014781,2]
[355188135,1740973277053,150.0,0.00014849,2]
[355188136,1740973277100,150.0,0.00014785,2]
[355188138,1740973378587,-150.0,0.00014854,2]
[355188139,1740973378613,-150.0,0.00014871,2]
[355188140,1740973378639,-150.0,0.00014874,2]
[355188141,1740973378665,-150.0,0.00014875,2]
[355188142,1740973378690,-550.0,0.00014875,2]
[355188143,1740973378715,-150.0,0.00014879,2]
[355188144,1740973378740,-155.12,0.00014899,2]
[355188145,1740973397314,150.0,0.00014738,2]
[355188146,1740973397501,150.0,0.0001475,2]
[355188147,1740973397565,150.0,0.00014732,2]
[355188148,1740973397601,150.0,0.00014763,2]
[355188149,1740973397632,150.0,0.00014817,2]
[355188150,1740973397674,150.0,0.0001472,2]
[355188151,1740973397744,150.0,0.00014796,2]
[355188152,1740973397899,150.0,0.00014825,2]
[355188153,1740973397942,150.0,0.00014726,2]
[355188154,1740973398185,150.0,0.0001484,2]
[355188155,1740973398234,150.0,0.00014781,2]
[355188156,1740973398294,150.0,0.00014716,2]
[355188157,1740973398397,150.0,0.00014731,2]
[355188158,1740973398769,150.0,0.0001484,2]
[355188159,1740973398825,150.0,0.00014763,2]
[355188160,1740973398889,150.0,0.00014743,2]
[355188161,1740973433331,-150.0,0.00014862,2]
[355188162,1740973433359,-135.0,0.00014882,2]
[355188163,1740973447461,2000.0,0.00014082,2]
[355188164,1740973492231,176.8,0.00014539,2]
[355188165,1740973629232,1032.24,0.00012162,2]
[355188166,1740973629462,1032.24,0.00014426,2]
[355188167,1740973679766,250.0,0.00014064,2]
[355188168,1740973737847,1000.0,0.00014075,2]
[355188174,1740973831934,-15.0,0.00014882,2]
[355188175,1740973831944,-150.0,0.00014886,2]
[355188176,1740973831957,-550.0,0.00014886,2]
[355188177,1740973831970,-150.0,0.000149,2]
[355188178,1740973831981,-5999.93323366,0.000149,7]
[355188179,1740973831993,-1050.11323801,0.000149,7]
[355188180,1740973832006,-416.9389759,0.000149,7]
[355188181,1740973832148,-1329.39881909,0.000149,7]
[355188182,1740973832160,-853.61573334,0.000149,7]
[355188183,1740973832170,-1331.11569294,0.000149,2]
[355188184,1740973832180,-500.0,0.000149,5]
[355188185,1740973832190,-3608.43808961,0.000149,2]
[355188186,1740973832214,-662.73596686,0.000149,2]
[355188187,1740973832226,-927.94,0.000149,2]
[355188188,1740973832238,-509.30921909,0.000149,2]
[355188189,1740973832254,-1959.05246287,0.000149,2]
[355188190,1740973832264,-1206.0,0.000149,2]
[355188191,1740973832274,-305.56354949,0.000149,2]
[355188192,1740973832284,-1000.0,0.000149,2]
[355188193,1740973832294,-150.0,0.000149,2]
[355188194,1740973832304,-150.0,0.00014906,2]
[355188195,1740973832313,-150.0,0.00014909,2]
[355188196,1740973832323,-150.0,0.0001492,2]
[355188197,1740973832333,-150.0,0.0001492,2]
[355188198,1740973832342,-150.0,0.0001492,2]
[355188199,1740973832352,-150.0,0.00014923,2]
[355188200,1740973832362,-150.0,0.00014924,2]
[355188201,1740973832371,-150.99,0.00014924,2]
[355188202,1740973832381,-150.0,0.00014938,2]
[355188203,1740973832393,-150.0,0.00014948,2]
[355188204,1740973832403,-150.0,0.00014951,2]
[355188205,1740973832413,-150.0,0.00014958,2]
[355188207,1740973832423,-150.0,0.00014967,2]
[355188209,1740973832432,-160.19066036,0.00014973,2]
[355188210,1740973832442,-160.19066036,0.00014973,2]
[355188211,1740973832452,-160.22772971,0.00014973,2]
[355188212,1740973832461,-151.22513684,0.00014973,2]
[355188213,1740973832471,-160.79746213,0.00014973,2]
[355188214,1740973832482,-500.0,0.00014973,2]
[355188215,1740973832491,-1376.45,0.00014995,2]
[355188216,1740973832501,-46817.10426093,0.00015,2]
[355188217,1740973832514,-2009.84638057,0.00015,2]
[355188218,1740973835671,350.0,0.00025,90]
[355188220,1740973837689,-2007.04302,0.00015,2]
[355188221,1740973837701,-773.99407838,0.00015,2]
[355188222,1740973837796,-325.98006136,0.00015,2]
[355188223,1740973838005,-4595.3446658,0.00015,2]
[355188224,1740973839950,-6317.54994665,0.00015,2]
[355188225,1740973839965,-10716.44498227,0.00015,2]
[355188226,1740973840304,-1223.44349502,0.00015,2]
[355188246,1740973844232,-301.616,0.00015,2]
[355188247,1740973844245,-1773.84551397,0.00015,2]
[355188248,1740973844431,-231.063,0.00015,2]
[355188249,1740973844444,-673.82,0.00015,2]
[355188255,1740973845866,-44949.47260546,0.00015,2]
[355188256,1740973845973,-338.28090999,0.00015,2]
[355188257,1740973846027,-624.99999998,0.00015,2]
[355188258,1740973863631,1000.0,0.00014736,2]
[355188259,1740973903468,1000.0,0.00014746,2]
[355188260,1740973903768,1038.56799719,0.00014801,2]
[355188261,1740973913669,1986.68135248,0.000148,2]
[355188262,1740973931940,250.0,0.00013,2]
[355188263,1740973996850,150.0,0.00014758,2]
[355188264,1740973996900,150.0,0.00014816,2]
[355188265,1740974003730,1123.37,0.00014294,2]
[355188266,1740974003971,1123.37,0.00014376,2]
[355188267,1740974004169,1123.37,0.00014459,2]
[355188268,1740974004395,1123.37,0.00014542,2]
[355188269,1740974004805,1123.37,0.00014624,2]
[355188270,1740974004845,1123.37,0.00014707,2]
[355188271,1740974004996,1123.37,0.0001479,2]
[355188272,1740974010960,200.0,0.00014232,2]
[355188273,1740974049623,153.54873,0.0001485,2]
[355188274,1740974054548,177.13,0.00011408,2]
[355188275,1740974057518,150.0,0.00014819,2]
[355188276,1740974057556,150.0,0.00014788,2]
[355188277,1740974057588,150.0,0.00014798,2]
[355188278,1740974057760,150.0,0.00014818,2]
[355188279,1740974058178,150.0,0.00014831,2]
[355188280,1740974058214,150.0,0.00014786,2]
[355188281,1740974058638,150.0,0.00014731,2]
[355188282,1740974086871,1389.71,0.00014162,2]
[355188283,1740974118848,157.81,0.00014162,2]
[355188284,1740974136096,23900.0,0.00014162,2]
[355188285,1740974264307,150.0,0.00014146,7]
[355188286,1740974291680,704.96,0.00014146,2]
[355188287,1740974356562,170.00551,0.0001485,2]
[355188288,1740974368200,1906.05,0.00014162,2]
[355188289,1740974411378,169.32,0.00014119,2]
[355188290,1740974411596,169.32,0.00014825,2]
[355188291,1740974415676,5000.0,0.00025,90]
[355188292,1740974441083,7715.6,0.00014134,2]
[355188293,1740974477091,150.0,0.00014825,2]
[355188294,1740974477195,150.0,0.00014802,2]
[355188295,1740974477251,150.0,0.00014749,2]
[355188296,1740974477361,150.0,0.00014825,2]
[355188297,1740974477409,150.0,0.00014744,2]
[355188298,1740974496077,1000.0,0.00014743,2]
[355188299,1740974496134,1000.0,0.00014763,2]
[355188300,1740974507198,1570.30778718,0.000201,14]
[355188301,1740974519041,2000.0,0.00014096,2]
[355188302,1740974558780,365.34,0.00014096,2]
[355188303,1740974650898,1164.75,0.00012198,2]
[355188304,1740974651097,1164.75,0.00014462,2]
[355188305,1740974674466,3740.57,0.00014154,2]
[355188306,1740974765921,3029.52,0.00025,90]
[355188307,1740974793671,1000.0,0.000142,2]
[355188308,1740974907207,250.0,0.00014179,2]
[355188309,1740974925356,171.27,0.00014611,2]
[355188311,1740975032205,-28244.03604376,0.00014873,2]
[355188312,1740975032217,-550.0,0.00014873,2]
[355188313,1740975032227,-150.0,0.00014873,2]
[355188314,1740975032238,-1123.37,0.00014873,2]
[355188315,1740975032248,-150.0,0.00014881,2]
[355188316,1740975032259,-150.0,0.00014883,2]
[355188317,1740975032268,-9126.1605,0.000149,2]
[355188318,1740975032278,-258.1168,0.000149,2]
[355188319,1740975032288,-3703.249,0.000149,2]
[355188320,1740975032297,-500.0,0.000149,5]
[355188321,1740975032307,-9097.95362184,0.000149,2]
[355188322,1740975032316,-7636.37471167,0.000149,2]
[355188323,1740975032325,-305.56354949,0.000149,2]
[355188324,1740975032335,-2500.0,0.000149,2]
[355188325,1740975032345,-1264.55990835,0.000149,2]
[355188326,1740975032354,-1101.16,0.00014938,2]
[355188327,1740975032364,-1123.37,0.00014955,2]
[355188328,1740975032379,-150.0,0.00014968,2]
[355188329,1740975032389,-150.0,0.00014972,2]
[355188330,1740975032398,-9999.99,0.00014972,2]
[355188331,1740975032408,-150.99,0.00014972,2]
[355188332,1740975032419,-999.99,0.00014972,2]
[355188333,1740975032428,-3500.72,0.00014972,2]
[355188334,1740975032438,-293.85,0.00014972,2]
[355188335,1740975032449,-5503.3313531,0.00014972,2]
[355188336,1740975032493,-1578.875,0.00014972,2]
[355188365,1740975037978,-2917.7836469,0.00014972,2]
[355188366,1740975037988,-101.95075915,0.00014973,2]
[355188367,1740975040212,-353.96626775,0.00014973,2]
[355188368,1740975040495,-500.0,0.00014973,2]
[355188369,1740975040505,-1000.0,0.00014979,2]
[355188370,1740975040514,-1277.0,0.00014983,2]
[355188371,1740975040524,-570.0,0.00014983,2]
[355188372,1740975040533,-1583.0,0.00014983,2]
[355188373,1740975040543,-150.53,0.00014983,2]
[355188374,1740975040552,-640.0,0.00014983,2]
[355188375,1740975040561,-786.0,0.00014983,2]
[355188376,1740975040571,-1269.0,0.00014983,2]
[355188377,1740975040580,-1427.0,0.00014983,2]
[355188378,1740975040589,-541.0,0.00014983,2]
[355188379,1740975040599,-908.0,0.00014983,2]
[355188380,1740975040608,-4040.0,0.00014983,2]
[355188381,1740975040618,-154.185,0.00014983,2]
[355188382,1740975040627,-3928.0,0.00014983,2]
[355188383,1740975040637,-1011.0,0.00014983,2]
[355188384,1740975040646,-440270.27122585,0.00015,2]
[355188385,1740975040656,-1126.81,0.00015,2]
[355188386,1740975040665,-4808.24924271,0.00015,2]
[355188387,1740975040674,-1000.0,0.00015,2]
[355188388,1740975040685,-2464.64265405,0.00015,2]
[355188389,1740975040695,-300.0,0.00015,2]
[355188390,1740975040704,-11883.8944476,0.00015001,2]
[355188391,1740975040715,-26834.2679266,0.00015001,2]
[355188392,1740975040725,-500.0,0.00015014,2]
[355188393,1740975040735,-500.0,0.00015014,2]
[355188394,1740975040744,-153.54873,0.0001503,2]
[355188395,1740975040753,-1123.37,0.00015038,2]
[355188396,1740975040763,-262342.45939349,0.00015063,2]
[355188397,1740975040773,-165.29,0.00015071,2]
[355188398,1740975040782,-500.0,0.00015073,2]
[355188399,1740975040791,-501.39843299,0.00015073,2]
[355188400,1740975040802,-243.27483881,0.00015073,2]
[355188401,1740975040812,-339.13581045,0.00015073,2]
[355188402,1740975040822,-500.56455314,0.00015073,2]
[355188403,1740975040831,-250.87323698,0.00015073,2]
[355188404,1740975040840,-160.0474385,0.00015073,2]
[355188405,1740975040850,-1123.37,0.00015121,2]
[355188406,1740975040859,-1123.37,0.00015204,2]
[355188407,1740975040868,-1123.37,0.00015286,2]
[355188408,1740975040878,-1264.55990826,0.00015293,2]
[355188409,1740975040888,-3566.25568374,0.00015299,2]
[355188410,1740975040898,-500.0,0.00015299,2]
[355188411,1740975040907,-500.0,0.00015299,2]
[355188412,1740975040916,-500.0,0.00015299,2]
[355188413,1740975040926,-500.0,0.00015299,2]
[355188414,1740975040935,-500.0,0.00015299,2]
[355188415,1740975040944,-500.0,0.00015299,2]
[355188416,1740975040955,-500.0,0.00015299,2]
[355188417,1740975040964,-500.0,0.00015299,2]
[355188418,1740975040973,-500.0,0.00015299,2]
[355188419,1740975040984,-500.0,0.00015299,2]
[355188420,1740975040994,-500.0,0.00015299,2]
[355188421,1740975041003,-500.0,0.00015299,2]
[355188422,1740975041012,-500.0,0.00015299,2]
[355188423,1740975041022,-500.0,0.00015299,2]
[355188424,1740975041031,-500.0,0.00015299,2]
[355188425,1740975041041,-500.0,0.00015299,2]
[355188426,1740975041050,-500.0,0.00015299,2]
[355188427,1740975041059,-500.0,0.00015299,2]
[355188428,1740975041068,-500.0,0.00015299,2]
[355188429,1740975041078,-500.0,0.00015299,2]
[355188430,1740975041087,-500.0,0.00015299,2]
[355188431,1740975041097,-500.0,0.00015299,2]
[355188432,1740975041107,-500.0,0.00015299,2]
[355188433,1740975041116,-500.0,0.00015299,2]
[355188434,1740975041125,-500.0,0.00015299,2]
[355188435,1740975041135,-500.0,0.00015299,2]
[355188436,1740975041143,-500.0,0.00015299,2]
[355188437,1740975041153,-500.0,0.00015299,2]
[355188438,1740975041161,-500.0,0.00015299,2]
[355188439,1740975041171,-500.0,0.00015299,2]
[355188440,1740975041180,-580.0,0.00015299,2]
[355188441,1740975041190,-500.0,0.00015299,2]
[355188442,1740975041199,-500.0,0.00015299,2]
[355188443,1740975041208,-500.0,0.00015299,2]
[355188444,1740975041219,-500.0,0.00015299,2]
[355188445,1740975041228,-500.0,0.00015299,2]
[355188446,1740975041237,-500.0,0.00015299,2]
[355188447,1740975041247,-500.0,0.00015299,2]
[355188448,1740975041256,-500.0,0.00015299,2]
[355188449,1740975041266,-500.0,0.00015299,2]
[355188450,1740975041275,-500.0,0.00015299,2]
[355188451,1740975041284,-1517.64,0.000153,2]
[355188452,1740975041293,-440.1,0.000153,2]
[355188453,1740975041303,-440.1,0.000153,2]
[355188454,1740975041312,-440.1,0.000153,2]
[355188455,1740975041321,-440.1,0.000153,2]
[355188456,1740975041331,-777.52,0.000153,2]
[355188457,1740975041340,-153.54874,0.0001535,2]
[355188458,1740975041349,-170.00551,0.0001536,2]
[355188459,1740975041359,-1123.37,0.00015369,2]
[355188460,1740975041368,-165.29,0.00015382,2]
[355188461,1740975041381,-16008.60460849,0.000154,2]
[355188462,1740975041390,-486.83292733,0.000154,2]
[355188463,1740975041400,-777.52,0.000154,2]
[355188464,1740975041410,-777.52,0.000154,2]
[355188465,1740975041419,-777.52,0.000154,2]
[355188466,1740975041429,-777.52,0.000154,2]
[355188467,1740975041438,-1247.95,0.000154,2]
[355188468,1740975041447,-435.03,0.000154,2]
[355188469,1740975041457,-777.52,0.000154,2]
[355188470,1740975041467,-441.09,0.000154,2]
[355188471,1740975041479,-777.52,0.000154,2]
[355188472,1740975041489,-964.46,0.000154,2]
[355188473,1740975041498,-777.52,0.000154,2]
[355188474,1740975041507,-150.0,0.000154,2]
[355188475,1740975041517,-150.0,0.000154,2]
[355188476,1740975041526,-150.0,0.000154,2]
[355188477,1740975041535,-777.52,0.000154,2]
[355188478,1740975041545,-150.0,0.000154,2]
[355188479,1740975041554,-150.0,0.000154,2]
[355188480,1740975041563,-150.0,0.000154,2]
[355188481,1740975041573,-150.0,0.000154,2]
[355188482,1740975041582,-150.0,0.000154,2]
[355188483,1740975041592,-150.0,0.000154,2]
[355188484,1740975041602,-150.0,0.000154,2]
[355188485,1740975041611,-150.0,0.000154,2]
[355188486,1740975041620,-150.0,0.000154,2]
[355188487,1740975041630,-885.65,0.000154,2]
[355188488,1740975041639,-150.0,0.000154,2]
[355188489,1740975041649,-150.0,0.000154,2]
[355188490,1740975041658,-150.93,0.000154,2]
[355188491,1740975041668,-163.0,0.000154,2]
[355188492,1740975041677,-150.0,0.000154,2]
[355188493,1740975041687,-151.54,0.000154,2]
[355188494,1740975041696,-239.02,0.000154,2]
[355188495,1740975041705,-150.85,0.000154,2]
[355188496,1740975041715,-150.0,0.000154,2]
[355188497,1740975041724,-150.0,0.000154,2]
[355188498,1740975041733,-300.0,0.000154,2]
[355188499,1740975041742,-150.0,0.000154,2]
[355188500,1740975041751,-150.0,0.000154,2]
[355188501,1740975041761,-301.75,0.000154,2]
[355188502,1740975041770,-440.1,0.000154,2]
[355188503,1740975041779,-440.1,0.000154,2]
[355188504,1740975041789,-150.0,0.000154,2]
[355188505,1740975041798,-251.48,0.000154,2]
[355188506,1740975041807,-368.0,0.000154,2]
[355188507,1740975041817,-4209.71622769,0.00015413,2]
[355188508,1740975041826,-171.27,0.00015415,2]
[355188509,1740975041835,-1123.37,0.00015452,2]
[355188510,1740975041845,-169.32,0.00015531,2]
[355188511,1740975041854,-1123.37,0.00015535,2]
[355188512,1740975041863,-1123.37,0.00015617,2]
[355188513,1740975041872,-153.54873,0.0001565,2]
[355188514,1740975041882,-165.29,0.00015693,2]
[355188515,1740975041891,-1123.37,0.000157,2]
[355188516,1740975041900,-153.53,0.00015707,2]
[355188517,1740975041910,-300.0,0.00015714,2]
[355188518,1740975041919,-1123.37,0.00015783,2]
[355188519,1740975041928,-365.34,0.00015858,2]
[355188520,1740975041937,-1123.37,0.00015866,2]
[355188521,1740975041946,-200.0,0.00015966,2]
[355188522,1740975041955,-160.459,0.00015966,2]
[355188523,1740975041965,-2031.0,0.00015966,2]
[355188524,1740975041974,-153.54874,0.0001597,2]
[355188525,1740975041984,-1000.0,0.00015975,2]
[355188526,1740975041993,-170.00551,0.0001599,2]
[355188527,1740975042003,-6351.97,0.00016116,2]
[355188528,1740975042012,-7636.37471161,0.00016125,2]
[355188529,1740975042021,-9097.95362175,0.00016217,2]
[355188530,1740975042031,-171.27,0.00016219,2]
[355188531,1740975042040,-169.32,0.00016237,2]
[355188532,1740975042050,-153.54873,0.0001628,2]
[355188533,1740975042060,-200.0,0.0001634,2]
[355188534,1740975042070,-550.0,0.0001636,2]
[355188535,1740975042079,-150.0,0.0001636,2]
[355188536,1740975042089,-550.0,0.0001636,2]
[355188537,1740975042099,-150.0,0.0001636,2]
[355188538,1740975042108,-1700.0,0.00016437,2]
[355188539,1740975042118,-1800.0,0.00016437,2]
[355188540,1740975042127,-3000.0,0.00016437,2]
[355188541,1740975042136,-1500.0,0.00016438,2]
[355188542,1740975042146,-203.39059197,0.00016438,2]
[355188543,1740975042155,-851.6,0.000165,5]
[355188544,1740975042164,-167.2,0.00016503,2]
[355188545,1740975042173,-170.00551,0.0001661,2]
[355188546,1740975042182,-181.47,0.00016712,2]
[355188547,1740975042191,-1164.75,0.00016726,2]
[355188548,1740975042201,-392.10380144,0.0001682,2]
[355188549,1740975042210,-67209.41045238,0.0001688,2]
[355188550,1740975042220,-169.32,0.00016943,2]
[355188551,1740975042229,-350.0,0.00017,2]
[355188552,1740975042238,-171.27,0.00017022,2]
[355188553,1740975042247,-300.0,0.00017083,2]
[355188554,1740975042256,-829.6,0.000171,2]
[355188555,1740975042265,-170.00551,0.0001724,2]
[355188556,1740975042275,-7723.25505959,0.0001728,2]
[355188557,1740975042283,-3174.0,0.000173,2]
[355188558,1740975042293,-749.0,0.000173,2]
[355188559,1740975042302,-7636.37471161,0.0001735,2]
[355188560,1740975042311,-9097.95362175,0.00017533,2]
[355188561,1740975042320,-150.0,0.00017534,2]
[355188562,1740975042330,-365.34,0.0001762,2]
[355188563,1740975042339,-1276.8428051,0.000177,2]
[355188564,1740975042348,-1276.84280504,0.000177,2]
[355188565,1740975042357,-1276.84280504,0.000177,2]
[355188566,1740975042369,-1000.0,0.0001775,2]
[355188567,1740975042378,-1700.0,0.00017807,2]
[355188568,1740975042387,-1800.0,0.00017807,2]
[355188569,1740975042397,-3000.0,0.00017807,2]
[355188570,1740975042406,-151.0,0.00017807,2]
[355188571,1740975042416,-151.0,0.00017807,2]
[355188572,1740975042426,-153.754395,0.00017807,2]
[355188573,1740975042436,-220.961458,0.00017807,2]
[355188574,1740975042446,-151.0,0.00017807,2]
[355188575,1740975042456,-152.309671,0.00017807,2]
[355188576,1740975042465,-600.0,0.00017808,2]
[355188577,1740975042474,-151.0,0.00017982,2]
[355188578,1740975042484,-151.0,0.00017982,2]
[355188579,1740975042493,-151.0,0.00017982,2]
[355188580,1740975042503,-153.051623,0.00017982,2]
[355188581,1740975042512,-1277.0,0.00017983,2]
[355188582,1740975042521,-570.0,0.00017983,2]
[355188583,1740975042531,-1583.0,0.00017983,2]
[355188584,1740975042541,-150.0,0.00017983,2]
[355188585,1740975042550,-640.0,0.00017983,2]
[355188586,1740975042561,-786.0,0.00017983,2]
[355188587,1740975042570,-1269.0,0.00017983,2]
[355188588,1740975042580,-1427.0,0.00017983,2]
[355188589,1740975042589,-541.0,0.00017983,2]
[355188590,1740975042599,-908.0,0.00017983,2]
[355188591,1740975042608,-4040.0,0.00017983,2]
[355188592,1740975042618,-150.0,0.00017983,2]
[355188593,1740975042627,-3928.0,0.00017983,2]
[355188594,1740975042636,-1011.0,0.00017983,2]
[355188595,1740975042645,-1139.55678441,0.00018,2]
[355188596,1740975042655,-151.0,0.00018,2]
[355188597,1740975042664,-151.0,0.00018,2]
[355188598,1740975042673,-151.0,0.00018,2]
[355188599,1740975042682,-151.424425,0.00018,2]
[355188600,1740975042692,-1115.101144,0.00018,2]
[355188601,1740975042702,-1115.101144,0.00018,2]
[355188602,1740975042711,-151.0,0.00018,2]
[355188603,1740975042720,-151.0,0.00018,2]
[355188604,1740975042730,-200.0,0.00018082,2]
[355188605,1740975042739,-450.91,0.00018356,2]
[355188606,1740975042749,-150.0,0.00018356,2]
[355188607,1740975042758,-440.1,0.00018356,2]
[355188608,1740975042767,-440.1,0.00018356,2]
[355188609,1740975042777,-880.2,0.00018356,2]
[355188610,1740975042786,-7636.37471161,0.00018576,2]
[355188611,1740975042796,-500.0,0.00018603,2]
[355188612,1740975042805,-151.0,0.00018667,2]
[355188614,1740975042814,-412.27686466,0.00018763,2]
[355188615,1740975042824,-9097.95362175,0.0001885,2]
[355188616,1740975042834,-392.10380138,0.00018855,2]
[355188617,1740975042843,-167.2,0.0001886,2]
[355188619,1740975042853,-24368.1937257,0.000189,2]
[355188621,1740975042863,-1000.0,0.000189,6]
[355188623,1740975042872,-1700.0,0.00018903,2]
[355188625,1740975042882,-1800.0,0.00018903,2]
[355188627,1740975042891,-3000.0,0.00018903,2]
[355188629,1740975042901,-151.0,0.00018939,2]
[355188631,1740975042912,-151.0,0.00018939,2]
[355188633,1740975042921,-156.177883,0.00018939,2]